Cogmind - Beta 15 @@@ ROGUE MODE // 2025.05.09 @ 16:17:42 Player: Heclapar Result: Destroyed by Autobeam Turret with Autobeam Performance ------------- Evolutions (0) 0 Regions Visited (2) 400 Robots Destroyed (25) 125 Value Destroyed (563) 563 Prototype IDs (2) 40 Alien Tech Used (0) 0 Bonus (0) 0 TOTAL SCORE: 1128 Bonus ------- None Cogmind --------- Core Integrity 0/250 Matter 275/300 Energy 119/125 System Corruption 0% Temperature Warm (158) Movement Treading (160) Location -10/Subcaves Parts ------- > --- POWER (1) -------- Light Ion Engine > --- PROPULSION (2) --- Light Treads Light Treads > --- UTILITY (2) ------ Large Storage Unit Hardened Light Armor Plating > --- WEAPON (2) ------- Improved Medium Laser Improved Medium Laser > --- INVENTORY (15) --- Aluminum Leg Aluminum Leg Heat Sink Cooling System Medium Storage Unit Light Armor Plating Scrap Shield Makeshift Hacking Suite Improved Medium Laser Autogun Mini Grenade Launcher Peak State ------------ > --- POWER ------------ Ion Engine > --- PROPULSION ------- Light Treads Light Treads > --- UTILITY ---------- Large Storage Unit Hardened Light Armor Plating > --- WEAPON ----------- Improved Medium Laser Improved Medium Laser > --- INVENTORY -------- Light Ion Engine Aluminum Leg Aluminum Leg Heat Sink Cooling System Medium Storage Unit Light Armor Plating Scrap Shield Makeshift Hacking Suite Improved Medium Laser Autogun Mini Grenade Launcher [Rating: 14] Favorites ----------- Power Ion Engine Engine Ion Engine Propulsion Aluminum Leg Treads Light Treads Leg Aluminum Leg Utility Medium Storage Unit Device Heat Sink Storage Medium Storage Unit Protection Hardened Light Armor Plating Weapon Improved Medium Laser Energy Gun Improved Medium Laser Ballistic Gun Light Assault Rifle Build | -11 -10 -10 ------- Run | Yrd Mat Sub Slots Evolved . | . . . Power . | . . . Propulsion . | . . . Utility . | . . . Weapon . | . . . Parts Attached 15 | . 11 4 Power 1 | . . 1 Engine 1 | . . 1 Core . | . . . Reactor . | . . . Propulsion 7 | . 5 2 Treads 2 | . . 2 Leg 5 | . 5 . Wheel . | . . . Hover . | . . . Flight . | . . . Utility 4 | . 3 1 Device 1 | . 1 . Storage 2 | . 1 1 Processor . | . . . Hackware . | . . . Protection 1 | . 1 . Artifact . | . . . Weapon 3 | . 3 . Energy Gun 3 | . 3 . Energy Cannon . | . . . Ballistic Gun . | . . . Ballistic Cannon . | . . . Launcher . | . . . Special Weapon . | . . . Impact Weapon . | . . . Slashing Weapon . | . . . Piercing Weapon . | . . . Special Melee Weapon . | . . . Unidentified Prototypes . | . . . Parts Lost 2 | . 1 1 Power 1 | . . 1 Propulsion . | . . . Utility . | . . . Weapon 1 | . 1 . Highest Loss Streak 1 | . 1 1 To Critical Strikes . | . . . Average Backups 9 | . 8 10 Power . | . 1 . Propulsion 3 | . 4 2 Utility 2 | . 1 4 Weapon 2 | . 1 3 Tool/Special . | . . . Unused Backups 13 | . 6 7 Power . | . . . Propulsion 4 | . 4 . Utility 4 | . . 4 Weapon 5 | . 2 3 Tool/Special . | . . . Average Slot Usage (%) 94 | . 90 99 Engine 13 | . 14 13 Treads 4 | . . 10 Leg 23 | . 28 17 Device 2 | . 3 . Storage 14 | . 14 14 Protection 7 | . 1 13 Energy Gun 24 | . 20 28 Ballistic Gun 3 | . 7 . Peak Build Rating 14 | . 13 14 Average Rating 10 | . 8 13 On Entrance 8 | 6 6 13 Naked Turns . | . . . Heaviest Build 36 | 12 26 36 Greatest Support 40 | 20 20 40 Greatest Overweight (x) 1 | . 1 1 Average Overweight (x) . | . . . Largest Inventory Capacity 15 | . 10 15 Average Capacity 10 | . 9 11 Most Carried 13 | . 10 13 Average Carried 9 | . 8 10 Final Capacity 15 | 8 10 15 Final Carried 12 | 6 10 12 Class Distribution -------------------- 100% | Mutant Dominant Class ---------------- Mutant | -10/Materials Mutant | -10/Subcaves Resources | -11 -10 -10 ----------- Run | Yrd Mat Sub Matter Collected 377 | 165 142 70 Remotely . | . . . Salvage Created 722 | . 532 190 Parts 45 | . 30 15 Haulers Intercepted . | . . . Recyclers Shooed . | . . . Parts Field Recycled . | . . . Retrieved Matter . | . . . Parts Self-Destructed 18 | . . 18 Prevented . | . . . Kills | -11 -10 -10 ------- Run | Yrd Mat Sub Combat Hostiles Destroyed 25 | . 16 9 Guns 24 | . 15 9 AOE 1 | . 1 . Classes Destroyed 3 | . 2 1 Swarmer 13 | . 6 7 Grunt 10 | . 10 . Subdweller 2 | . . 2 Best Kill Streak 4 | . 4 4 Combat Bots Only 4 | . 4 4 Max Kills in Single Turn 2 | . 2 2 Gunslinging 1 | . 1 1 Exploded 1 | . 1 . Melee . | . . . Uniques/NPCs Destroyed . | . . . Combat | -11 -10 -10 -------- Run | Yrd Mat Sub Hostile Shots Fired 155 | . 68 87 Missed 42 | . 15 27 Hits 113 | . 53 60 Projectile 113 | . 53 60 Critical Strikes 1 | . . 1 Damage Taken 1118 | . 555 563 Core 251 | . 88 163 Absorbed by Shields . | . . . Core Remaining (%) 100 | 100 . . Volleys Fired 77 | . 49 28 Largest 2 | . 2 2 Hottest 112 | . 112 112 Shots Fired 154 | . 98 56 Gun 154 | . 98 56 Cannon . | . . . Launcher . | . . . Special . | . . . Kinetic 40 | . 40 . Thermal 106 | . 50 56 Explosive . | . . . Electromagnetic 8 | . 8 . Robot Hit Streak 14 | . 14 9 Robot Miss Streak 3 | . 3 3 Penetration Max . | . . . Secondary Targets 5 | . 3 2 Max Gunslinging Chain 1 | . 1 1 Shots Hit Robots 94 | . 57 37 Core Hits 42 | . 29 13 Critical Kills . | . . . Critical Parts Destroyed 1 | . 1 . Critical Strikes 4 | . 1 3 Burn 3 | . . 3 Destroy 1 | . 1 . Melee Attacks . | . . . Impact . | . . . Slashing . | . . . Piercing . | . . . Sneak Attacks . | . . . Combat Hostiles . | . . . Follow-up Attacks . | . . . Damage Inflicted 1202 | . 588 614 Guns 1166 | . 552 614 Cannons . | . . . Explosions 32 | . 32 . Melee . | . . . Ramming 4 | . 4 . Kinetic 188 | . 188 . Thermal 940 | . 326 614 Explosive . | . . . Electromagnetic 70 | . 70 . Impact . | . . . Slashing . | . . . Piercing . | . . . Highest Corruption . | . . . Average Corruption . | . . . Corruption Purged . | . . . Corruption Blocked . | . . . Overload Shots . | . . . Overflow Damage . | . . . Projectiles . | . . . Explosions . | . . . Melee . | . . . Knockbacks . | . . . Impact . | . . . Kinetic . | . . . Secondary . | . . . Self-Inflicted Damage . | . . . Shots . | . . . Rammed . | . . . Targets Rammed 1 | . 1 . Kicked 1 | . 1 . Crushed . | . . . Highest Temperature 152 | . 120 152 Average Temperature 39 | . 44 30 Received Heat Transfer 477 | . 240 237 Siege Activations . | . . . Martial Activations . | . . . Shielding Activations . | . . . Robots Disrupted . | . . . Combat Hostiles . | . . . Robots Corrupted . | . . . Combat Hostiles . | . . . Parts Fried . | . . . Impact Corruptions . | . . . Robots Melted . | . . . Combat Hostiles . | . . . Parts Melted 3 | . 2 1 Heat Transferred 2279 | . 725 1554 Parts Sabotaged . | . . . Parts Stolen . | . . . Parts Stripped . | . . . Power Chain Reactions 1 | . 1 . Alert | -11 -10 -10 ------- Run | Yrd Mat Sub Maximum Alert Level . | . . . Low Security (%) 100 | . 100 . Level 1 . | . . . Level 2 . | . . . Level 3 . | . . . Level 4 . | . . . Level 5 . | . . . High Security . | . . . Max Security . | . . . Peak Influence 119 | . 119 . Initial . | . . . Average 54 | . 54 . Influence Increases 585 | . 390 195 Destroy 0b10 Robot/C 460 | . 320 140 Destroy Leader 70 | . 60 10 Successful Hack 7 | . 7 . Destroy Structure 3 | . 3 . Lose Combat Pursuer 45 | . . 45 Influence Decreases 486 | . 390 96 Time Decay 396 | . 310 86 Lost Part 20 | . 10 10 Purge Threat 70 | . 70 . Squads Dispatched 3 | . 3 . Investigation 2 | . 2 . Extermination . | . . . Reinforcement 1 | . 1 . Assault . | . . . Garrison . | . . . Intercept . | . . . Searches Triggered . | . . . Construction Impeded . | . . . Haulers Reinforced . | . . . Active Scanning Responses . | . . . Cargo Convoy Interrupts . | . . . Stealth | -11 -10 -10 --------- Run | Yrd Mat Sub Distress Signals 1 | . 1 . Communications Jammed . | . . . Distress Signals . | . . . Times Spotted 31 | . 20 11 Peak Tracking Total 4 | . 3 4 Tactical Retreats 2 | . . 2 Traps | -11 -10 -10 ------- Run | Yrd Mat Sub Traps Triggered 2 | . 2 . Indirectly . | . . . Trap Hack Attempts . | . . . Triggered . | . . . Disarmed . | . . . Reprogrammed . | . . . Reused . | . . . Traps Extracted . | . . . Installed . | . . . Triggered . | . . . Machines | -11 -10 -10 ---------- Run | Yrd Mat Sub Machines Disabled . | . . . Max in Single Turn . | . . . Machines Repaired . | . . . Machines Dismantled . | . . . Machines Sabotaged . | . . . Overloaded Fab Kills . | . . . Hacking | -11 -10 -10 --------- Run | Yrd Mat Sub Machines Accessed 3 | . 3 . Terminals 3 | . 3 . Fabricators . | . . . Repair Stations . | . . . Recycling Units . | . . . Scanalyzers . | . . . Garrison Access . | . . . Total Hacks 10 | . 10 . Successful 4 | . 4 . Failed 6 | . 6 . Catastrophic 1 | . 1 . Database Lockouts . | . . . Manual . | . . . Terminals 10 | . 10 . Fabricators . | . . . Repair Stations . | . . . Recycling Units . | . . . Scanalyzers . | . . . Garrison Access . | . . . Terminal Hacks 4 | . 4 . Prototype ID Bank 1 | . 1 . Alert Level 1 | . 1 . Unreport Threat 1 | . 1 . Surveillance Status 1 | . 1 . Fabricator Hacks . | . . . Repair Station Hacks . | . . . Recycling Unit Hacks . | . . . Scanalyzer . | . . . Garrison Access Hacks . | . . . Unauthorized Hacks . | . . . Terminals . | . . . Fabricators . | . . . Repair Stations . | . . . Recycling Units . | . . . Scanalyzers . | . . . Garrison Access . | . . . Data Cores Recovered . | . . . Used . | . . . Hacking Detections 2 | . 2 . Full Trace Events . | . . . Feedback Events . | . . . Feedback Blocked . | . . . Robot Schematics Acquired . | . . . Robots Built . | . . . Authchips . | . . . Time . | . . . Total Robot Build Rating . | . . . Part Schematics Acquired . | . . . Parts Built . | . . . Authchips . | . . . Time . | . . . Total Part Build Rating . | . . . Parts Repaired . | . . . Time . | . . . Parts Recycled . | . . . Recycled Matter . | . . . Retrieved Matter . | . . . Retrieved Components . | . . . Parts Scanalyzed . | . . . Part Schematics Acquired . | . . . Parts Damaged . | . . . Bothacking | -11 -10 -10 ------------ Run | Yrd Mat Sub Used RIF Installer . | . . . Robots Hacked . | . . . Non-combat . | . . . Combat . | . . . Robot Hacks Applied . | . . . Relay Couplers Released . | . . . Fabnet Peak Effective % . | . . . Robots Rewired . | . . . Allies Hacked . | . . . Hacks Repelled . | . . . Allies | -11 -10 -10 -------- Run | Yrd Mat Sub Total Allies . | . . . Largest Group . | . . . Highest-Rated Group . | . . . Highest-Rated Ally . | . . . Total Orders . | . . . Ally Attacks . | . . . Total Damage . | . . . Kills . | . . . Allies Corrupted . | . . . Allies Melted . | . . . Intel | -11 -10 -10 ------- Run | Yrd Mat Sub Active Infowar (turns) . | . . . Robot Analysis Total . | . . . Derelict Logs Recovered 2 | . . 2 Drone Launches . | . . . Drone Recoveries . | . . . Exploration | -11 -10 -10 ------------- Run | Yrd Mat Sub Turns Passed 1379 | . 767 612 Spaces Moved 601 | 1 334 266 Core . | . . . Treads 101 | . . 101 Legs 500 | 1 334 165 Wheels . | . . . Hover . | . . . Flight . | . . . Fastest Speed 120 | 120 120 160 Average Speed 159 | 120 144 178 Slowest Speed 190 | 120 190 190 Overloaded Moves . | . . . Propulsion Burnouts . | . . . Robots Hopped . | . . . Potential Cave-ins . | . . . Cave-ins Triggered . | . . . Exploration Rate (%) 32 | 2 63 31 Regions Visited 2 Branch Regions 1 Pre-discovered Areas 3 | . . 3 Known Exits Taken . | . . . Unknown Exits Taken 2 | 1 1 . Scrap Searched . | . . . Spaces Dug . | . . . Terrain Destroyed 3 | . 3 . Melee . | . . . Projectile . | . . . AOE 3 | . 3 . Terrain Rammed . | . . . Walls Destroyed . | . . . Machines Disabled . | . . . Actions | -11 -10 -10 --------- Run | Yrd Mat Sub Total 878 | . 532 346 Wait 163 | . 120 43 Move 599 | . 333 266 Hop . | . . . Pick Up 10 | . 8 2 Fast Attach 3 | . 2 1 Attach 3 | . 2 1 Detach . | . . . Swap 11 | . 7 4 Drop 11 | . 10 1 Fire 77 | . 49 28 Melee . | . . . Ram . | . . . Kick 1 | . 1 . Crush . | . . . Escape Stasis . | . . . Rewire . | . . . Trap . | . . . Miscellaneous . | . . . Route ------- -11/Scrapyard -10/Materials (discovered 4 exits: [*Mat] / [*Min x2] / [*Sub]) -10/Subcaves (discovered 1 exit: [*Rec]) History --------- Turn | Location | Event 1 | -11/Scrapyard | Discovered new exit (range 0) 1 | -11/Scrapyard | Entered Materials 170 | -10/Materials | Discovered new exit (range 12) 314 | -10/Materials | Build established: Mutant 446 | -10/Materials | Discovered new exit (range 15) 532 | -10/Materials | Discovered new exit (range 11) 760 | -10/Materials | Discovered new exit (range 5) 768 | -10/Materials | Entered Subcaves 890 | -10/Subcaves | Learned location of Storage (-7) 995 | -10/Subcaves | Core integrity fell below 50% 1019 | -10/Subcaves | Core integrity fell below 20% 1127 | -10/Subcaves | Shifting Twisted Machinery released Battle Rifle 1134 | -10/Subcaves | Shifting Twisted Machinery released Scrap Shield 1225 | -10/Subcaves | Shifting Twisted Machinery released Sub. Monowheel 1228 | -10/Subcaves | Learned location of Zion (-7) 1228 | -10/Subcaves | Met a Zionite searching for "candidates" 1280 | -10/Subcaves | Shifting Twisted Machinery released Sub. Shrapnel Launcher 1368 | -10/Subcaves | Discovered new exit (range 9) 1380 | -10/Subcaves | Destroyed by Autobeam Turret with Autobeam Last Messages --------------- 01336_ S-10 Pest springs to life. 01339_ S-10 Pest destroyed. 01342_ Ion Engine destroyed. 01345_ S-10 Pest destroyed. 01348_ Lgt. Assault Rifle fries itself beyond repair. 01349_ Subatomizers dissect the Flight Unit. 01352_ Flight Unit fries itself beyond repair. 01355_ Acquired 12 matter. 01359_ Lgt. Ion Engine fries itself beyond repair. 01365_ S-10 Pest destroyed. 01365_ Switching to secondary target: S-10 Pest. 01365_ S-10 Pest destroyed. 01368_ Acquired 18 matter. 01368_ EXIT=FOUND 01378_ Lgt. Assault Rifle fries itself beyond repair. 01379_ Flight Unit fries itself beyond repair. Map ----- +----------------------------------------------------+ | ?????????????????????????????????????????????????? | | ?????????????????????????????????????????????????? | | ???????????????????????? ?????????????????????##? | | ??????????????????????? ######????????????### #? | | ??????????????????????? # # ??????????? ## | | ?????????????????????? ??????????? | | ?????????????????????? ???????????? | | ?????????????????????? ????????????? | | ?????????????????????? ####??????????# | | ??????????????????????? ??????????## | | ???????????????????????? ?????????### | | ????????????????????????# #??????????# | | ????????????????##??????# #??###?????## | | ????????????#??## #????## ### #??#### #? | | ????????????# ?# #??## #???# #?? | | ???????????##" # ### #????# #?? | | ??????????#"" #????## #?? | | ????????# #?#### #?? | | ????????? ### ### ##? | | ?????????????????### ## #? | | ???????????????????# ##### ## | | ???????????????????# ##???##### | | ??????????????????## #?????""### | | ?????????????????## ##?? "#?##### # | | ?????????????????# # "#?###?###### # | | ????????????# ## @% t""#?# #????## # | | ????????????## ?## % <## ##### # | | ?????????????# ??# t""## & ## | | ?????????????# ?? # "#?#### #? | | ?????????????## ? ## "#??## "" " ### | | ??????????????## ? #?" """#??# " # ## | | ???????????????### ? #??######??# " " ## ### | | ?????????????????# ##??????????# # ## | | ?????????????????? ##????????????# | | ??????????????????####??????????????## | | ?????????????????????????????????????## # | | ??????????????????????????????????????##?### | | ???????????????????????????????????????????## ### | | ????????????????????????????????????????????####?? | | ?????????????????????????????????????????????????? | | ?????????????????????????????????????????????????? | | ?????????????????????????????????????????????????? | | ?????????????????????????????????????????????????? | | ?????????????????????????????????????????????????? | | ?????????????????????????????????????????????????? | | ?????????????????????????????????????????????????? | | ?????????????????????????????????????????????????? | | ?????????????????????????????????????????????????? | | ?????????????????????????????????????????????????? | | ?????????????????????????????????????????????????? | +----------------------------------------------------+ Best States ------------- Heat Dissipation 35 Energy Generation 10 Energy Capacity 250 Matter Stores 300 Matter Capacity 300 Sight Range 16 Terrain Scan Density 10 Armor Coverage 150 Evasion (%) 55 Recoil Reduction 2 Item Schematics ----------------- None Robot Schematics ------------------ None Fabricated ------------ Nothing Repaired ---------- Nothing Alien Tech Used ----------------- None Achievements -------------- None Challenges ------------ None Game ------ Seed PotentialDecoyNanoactuators Manual? 0 Play Time 00:08:51 Cumulative 105.1 hours Start 2025.05.09 @ 16:11:21 End 2025.05.09 @ 16:17:42 Sessions 1 Manual Loads 0 Difficulty Rogue Special Mode None Game No. 125 Rogue 125 Adventurer 0 Explorer 0 Win Type - Total 1 Types 1/0/0/0/0/0/0/0/0/0 Lore% 47 Gallery% 52 Achievement% 54 Wizard Run 0 Options --------- Layout 2 ASCII 0 Keyboard 0 Movement Mouse Keybinds 0 Fullscreen 1 Font 32/Terminus Map View 50x44 Zoom Use 0% Tactical HUD 1 Map Filters NONE Filters NONE Steam 1 RUN: d3d5fc3d-c5b1-416e-8a15-312fa2045c12